bitfinex-derivatives/quotes_SOLF0:USTF0_20250716
["timestamp","ask_amount","ask_price","bid_price","bid_amount"]
[1752673818888,5.9898,166.93,166.9,0.04401834]
[1752673819292,5.9898,166.93,166.87,8.75632932]
[1752673819483,5.9898,166.93,166.89,5.9911]
[1752673819691,124.0,166.95,166.9,0.04219197]
[1752673819994,132.75632932,166.95,166.9,0.04219197]
[1752673820189,5.9904,166.91,166.9,0.04219197]
[1752673820388,5.9904,166.91,166.85,8.75632932]
[1752673820389,8.75632932,166.93,166.83,8.75632932]
[1752673821596,0.04460548,166.9,166.83,8.75632932]
[1752673821790,0.04460548,166.9,166.84,5.9927]
[1752673822396,5.9917,166.88,166.84,5.9927]
[1752673822694,0.04460548,166.9,166.83,8.75632932]
[1752673823388,0.04460548,166.9,166.79,4.59368356]
[1752673823389,0.04460548,166.9,166.85,8.75632932]
[1752673823797,124.0,166.95,166.85,8.75632932]
[1752673824091,0.04242521,166.89,166.86,5.9921]
[1752673824291,0.04242521,166.89,166.85,8.75632932]
[1752673825493,0.04242521,166.89,166.87,5.9916]
[1752673825694,0.04242521,166.89,166.85,8.75632932]
[1752673826095,0.04242521,166.89,166.83,8.75632932]
[1752673826295,0.04242521,166.89,166.81,4.59281463]
[1752673826296,0.04242521,166.89,166.82,8.75632932]
[1752673826494,0.04242521,166.89,166.84,5.9927]
[1752673826495,5.9917,166.88,166.84,5.9927]
[1752673826702,124.0,166.95,166.82,8.75632932]
[1752673826902,8.75632932,166.92,166.82,8.75632932]
[1752673827105,0.03849454,166.88,166.84,8.75632932]
[1752673827290,0.03849454,166.88,166.85,5.91406192]
[1752673827598,0.03849454,166.88,166.86,5.91406192]
[1752673827796,0.03849454,166.88,166.87,5.91406192]
[1752673828504,6.02999454,166.88,166.87,5.91406192]
[1752673829301,6.02999454,166.88,166.87,5.9487363]
[1752673830403,0.03849454,166.88,166.81,8.75632932]
[1752673831405,0.03849454,166.88,166.83,5.9932]
[1752673831605,5.9922,166.86,166.84,6.1469581]
[1752673831802,5.9922,166.86,166.85,6.1469581]
[1752673832110,5.9922,166.86,166.83,5.9932]
[1752673832310,5.9922,166.86,166.84,6.14565531]
[1752673832506,5.9922,166.86,166.85,6.14565531]
[1752673832707,5.9919,166.87,166.85,6.14565531]
[1752673832909,5.9919,166.87,166.86,6.14565531]
[1752673833106,0.03849454,166.88,166.86,6.14565531]
[1752673833305,0.03849454,166.88,166.87,6.14565531]
[1752673834213,6.02989454,166.88,166.87,6.14565531]
[1752673834711,6.02989454,166.88,166.87,3.547e-05]
[1752673836613,0.03849454,166.88,166.81,5.9938]
[1752673837212,0.03849454,166.88,166.81,8.75632932]
[1752673838015,0.03849454,166.88,166.79,8.75632932]
[1752673838411,8.75632932,166.87,166.77,4.60476112]
[1752673838612,8.75632932,166.87,166.78,8.75632932]
[1752673838810,0.04167367,166.85,166.77,4.60476112]
[1752673839013,8.75632932,166.83,166.76,707.12]
[1752673839213,8.75632932,166.83,166.76,189.72]
[1752673839615,8.75632932,166.81,166.74,5.9962]
[1752673839817,8.80064592,166.81,166.72,8.75632932]
[1752673840318,5.9953,166.78,166.72,8.75632932]
[1752673841016,0.04286101,166.77,166.72,8.75632932]
[1752673841514,0.04286101,166.77,166.76,5.9957]
[1752673841713,517.64,166.89,166.74,8.75632932]
[1752673842017,8.75632932,166.85,166.76,8.75632932]
[1752673842218,5.9935,166.83,166.76,8.75632932]
[1752673842413,8.75632932,166.85,166.76,8.75632932]
[1752673842819,8.75632932,166.85,166.74,8.75632932]
[1752673843022,8.75632932,166.83,166.74,8.75632932]
[1752673843221,5.9943,166.8,166.79,0.04403149]
[1752673843720,517.64,166.89,166.79,0.04403149]
[1752673844019,8.75632932,166.86,166.79,0.04403149]
[1752673844416,8.75632932,166.88,166.79,0.04403149]
[1752673844620,8.75632932,166.86,166.79,0.04403149]
[1752673844817,5.9934,166.83,166.79,0.04403149]
[1752673845023,526.39632932,166.89,166.79,0.04403149]
[1752673845417,8.75632932,166.87,166.79,0.04403149]
[1752673845815,5.9928,166.85,166.8,5.994]
[1752673846123,8.75632932,166.91,166.81,8.75632932]
[1752673846518,5.992,166.87,166.84,0.0452603]
[1752673846720,8.75632932,166.91,166.85,5.92164889]
[1752673846919,5.9917,166.88,166.86,5.92164889]
[1752673847119,8.75632932,166.93,166.87,5.92164889]
[1752673847319,2.42035016,166.92,166.88,5.92164889]
[1752673847527,5.9907,166.9,166.89,5.92164889]
[1752673847824,8.75632932,166.94,166.89,5.92164889]
[1752673848019,5.9904,166.91,166.9,5.92164889]
[1752673848221,124.0,166.95,166.9,5.92164889]
[1752673848422,124.0,166.95,166.91,5.92164889]
[1752673848618,5.9896,166.93,166.92,5.92164889]
[1752673849022,124.0,166.95,166.87,8.75632932]
[1752673849219,124.0,166.95,166.88,5.91509542]
[1752673849522,124.0,166.95,166.91,0.04321867]
[1752673850222,5.9902,166.92,166.91,0.00035766]
[1752673850924,5.9902,166.92,166.91,5.91616807]
[1752673853627,5.9902,166.92,166.91,5.91563777]
[1752673853827,5.9902,166.92,166.91,3.777e-05]
[1752673854022,8.75632932,166.92,166.81,188.92]
[1752673854328,8.75632932,166.92,166.81,197.67632932]
[1752673855130,5.992,166.87,166.84,5.9929]
[1752673855827,5.992,166.87,166.83,5.9931]
[1752673856028,5.9915,166.88,166.81,197.67632932]
[1752673856329,5.9915,166.88,166.83,8.75632932]
[1752673856534,8.75632932,166.92,166.84,5.9928]
[1752673857030,5.9918,166.87,166.83,14.74942932]
[1752673857728,5.9916,166.88,166.84,5.9928]
[1752673857934,8.75632932,166.92,166.83,8.75632932]
[1752673858128,188.22,166.93,166.83,8.75632932]
[1752673858531,5.9913,166.89,166.85,5.9923]
[1752673859226,5.9909,166.9,166.83,8.75632932]
[1752673859422,8.75632932,166.92,166.82,8.75632932]
[1752673860120,5.9916,166.88,166.82,8.75632932]
[1752673860433,196.97632932,166.93,166.84,8.75632932]
[1752673860925,196.97632932,166.93,166.85,5.9923]
[1752673861433,196.97632932,166.93,166.81,188.92]
[1752673861434,124.0,166.95,166.86,8.75632932]
[1752673861932,124.0,166.95,166.87,5.9917]
[1752673862132,124.0,166.95,166.86,8.75632932]
[1752673862330,714.01632932,166.97,166.86,8.75632932]
[1752673862634,714.01632932,166.97,166.82,4.59157817]
[1752673862635,5.9894,166.94,166.88,8.75632932]
[1752673862829,714.01632932,166.97,166.88,8.75632932]
[1752673863230,714.01632932,166.97,166.9,5.9905]
[1752673863427,320.29632932,166.97,166.88,8.75632932]
[1752673863631,279.3204302,166.99,166.81,200.9076]
[1752673863632,5.9886,166.96,166.92,5.9898]
[1752673863832,8.75632932,167.0,166.92,8.75632932]
[1752673864032,124.0,167.0,166.84,4.58878391]
[1752673864238,5.9888,166.96,166.9,8.75632932]
[1752673864738,5.9892,166.95,166.88,8.75632932]
[1752673865030,8.75632932,166.98,166.88,8.75632932]
[1752673865736,8.75632932,166.96,166.86,8.75632932]
[1752673865938,8.75632932,166.94,166.88,5.9914]
[1752673866139,8.75632932,166.96,166.88,5.9914]
[1752673866635,8.75632932,166.96,166.87,5.9916]
[1752673866833,8.75632932,166.94,166.84,8.75632932]
[1752673867032,8.75632932,166.92,166.83,187.42]
[1752673867442,187.46,166.95,166.86,8.75632932]
[1752673867629,5.9902,166.92,166.86,8.75632932]
[1752673867829,8.75632932,166.96,166.86,8.75632932]
[1752673868033,311.42,167.0,166.83,187.42]
[1752673868034,8.75632932,166.98,166.88,8.75632932]
[1752673868237,320.17632932,167.0,166.91,5.9903]
[1752673868633,5.9892,166.95,166.91,5.9903]
[1752673868832,320.17632932,167.0,166.91,5.9903]
[1752673869033,132.75632932,167.0,166.92,5.99]
[1752673869338,5.9891,166.95,166.9,8.75632932]
[1752673869836,5.9891,166.95,166.91,5.9901]
[1752673870737,5.9887,166.96,166.92,5.9899]
[1752673870934,132.75632932,167.0,166.92,8.75632932]
[1752673870935,124.0,167.0,166.92,8.75632932]
[1752673871132,5.9886,166.96,166.92,8.75632932]
[1752673871938,5.9884,166.97,166.93,5.9894]
[1752673872130,124.0,167.0,166.93,5.9894]
[1752673872331,124.0,167.0,166.92,8.75632932]
[1752673872538,5.989,166.95,166.92,14.74632932]
[1752673872735,124.0,167.0,166.92,8.75632932]
[1752673873245,132.75632932,167.0,166.9,8.75632932]
[1752673873644,132.75632932,167.0,166.84,4.57930054]
[1752673873844,8.75632932,166.91,166.78,522.71619227]
[1752673874137,150.73632932,167.0,166.8,8.75632932]
[1752673874138,8.75632932,166.89,166.8,8.75632932]
[1752673874441,8.75632932,166.87,166.81,6.02437385]
[1752673874642,8.75632932,166.87,166.78,526.47632932]
[1752673874643,5.9932,166.83,166.82,6.02437385]
[1752673874837,8.75632932,166.85,166.76,8.75632932]
[1752673875037,0.04059964,166.86,166.73,187.16]
[1752673875038,8.75632932,166.83,166.77,6.03169594]
[1752673875342,5.9947,166.79,166.78,6.03169594]
[1752673877243,0.03953199,166.82,166.78,6.03169594]
[1752673877442,0.03953199,166.82,166.79,6.03169594]
[1752673877642,0.03953199,166.82,166.8,5.93969212]
[1752673877845,0.03953199,166.82,166.77,5.9951]
[1752673878044,0.03953199,166.82,166.78,5.93918989]
[1752673878045,5.9942,166.81,166.78,5.93918989]
[1752673878344,5.9942,166.81,166.79,5.93918989]
[1752673878544,6.03323199,166.82,166.8,5.93795949]
[1752673878748,6.03323199,166.82,166.77,5.9951]
[1752673879039,0.03953199,166.82,166.78,5.93795949]
[1752673879239,0.03953199,166.82,166.79,5.93795949]
[1752673879451,0.03953199,166.82,166.8,5.93795949]
[1752673879642,0.03953199,166.82,166.81,5.93648967]
[1752673880446,6.03313199,166.82,166.81,5.93648967]
[1752673880949,0.03953199,166.82,166.75,5.9958]
[1752673881147,8.75632932,166.81,166.76,5.93246462]
[1752673881445,8.75632932,166.81,166.77,5.93246462]
[1752673881647,0.04435811,166.8,166.78,5.93246462]
[1752673881944,0.04435811,166.8,166.73,8.75632932]
[1752673882139,0.04435811,166.8,166.75,8.75632932]
[1752673882343,0.04435811,166.8,166.76,5.93371364]
[1752673882547,0.04435811,166.8,166.77,5.93371364]
[1752673882752,0.04435811,166.8,166.78,5.93371364]
[1752673882946,0.04435811,166.8,166.79,5.93371364]
[1752673883148,187.5,166.9,166.79,14.69004296]
[1752673883347,164.41973543,166.91,166.81,8.75632932]
[1752673883549,164.41973543,166.91,166.82,5.93371364]
[1752673883745,8.75632932,166.9,166.83,5.93371364]
[1752673883949,8.75632932,166.9,166.84,5.93371364]
[1752673884150,8.75632932,166.9,166.82,5.9936]
[1752673884346,279.3204302,166.94,166.83,5.92619768]
[1752673884550,8.75632932,166.91,166.85,0.04258168]
[1752673885052,8.75632932,166.91,166.82,8.75632932]
[1752673885252,8.75632932,166.91,166.86,0.03772637]
[1752673885449,5.9915,166.88,166.86,0.03772637]
[1752673885650,8.75632932,166.91,166.86,0.03772637]
[1752673885845,8.75632932,166.89,166.86,0.03772637]
[1752673886049,8.75632932,166.89,166.8,8.75632932]
[1752673886252,8.75632932,166.89,166.81,5.92708786]
[1752673886448,8.75632932,166.89,166.82,5.92708786]
[1752673886753,6.68376869,166.92,166.83,5.92708786]
[1752673887052,8.75632932,166.88,166.84,5.92708786]
[1752673887251,8.75632932,166.9,166.8,8.75632932]
[1752673887456,8.75632932,166.9,166.81,5.9321984]
[1752673887752,8.75632932,166.9,166.8,8.75632932]
[1752673887753,8.75632932,166.9,166.82,5.9321984]
[1752673888048,8.75632932,166.9,166.74,187.68]
[1752673888049,8.75632932,166.86,166.83,5.9321984]
[1752673888352,5.9925,166.85,166.84,5.9321984]
[1752673888548,8.75632932,166.86,166.76,8.75632932]
[1752673888744,8.7956174,166.86,166.78,5.995]
[1752673889954,8.7956174,166.86,166.79,5.9946]
[1752673890154,8.7956174,166.86,166.76,8.75632932]
[1752673890351,5.994,166.81,166.76,8.75632932]
[1752673890947,8.75632932,166.84,166.76,14.75192932]
[1752673891152,8.75632932,166.82,166.74,187.68]
[1752673891356,8.75632932,166.82,166.74,193.6764]
[1752673892055,5.995,166.79,166.74,193.6764]
[1752673892256,8.75632932,166.82,166.74,193.6764]
[1752673893050,8.75632932,166.82,166.74,187.68]
[1752673893257,8.75632932,166.8,166.74,187.68]
[1752673893456,8.75632932,166.8,166.71,5.9973]
[1752673893654,8.75632932,166.8,166.7,517.46]
[1752673893953,8.75632932,166.78,166.62,517.76]
[1752673894149,8.75632932,166.76,166.67,8.75632932]
[1752673894354,6.68376869,166.83,166.67,8.75632932]
[1752673894551,8.75632932,166.76,166.67,8.75632932]
[1752673894856,5.9971,166.73,166.69,5.998]
[1752673895052,8.75632932,166.76,166.67,8.75632932]
[1752673895250,8.75632932,166.76,166.65,8.75632932]
[1752673895453,5.9975,166.72,166.63,188.86]
[1752673895754,8.75632932,166.76,166.65,8.75632932]
[1752673896151,5.9971,166.73,166.65,8.75632932]
[1752673896356,8.75632932,166.76,166.65,8.75632932]
[1752673896656,5.9971,166.73,166.65,8.75632932]
[1752673896857,5.9971,166.73,166.63,188.86]
[1752673897057,5.9973,166.72,166.65,8.75632932]
[1752673897255,8.75632932,166.76,166.63,188.86]
[1752673897448,159.90290195,166.82,166.56,234.4986488]
[1752673897449,8.75632932,166.72,166.56,234.4986488]
[1752673897648,188.48,166.78,166.56,234.4986488]
[1752673897649,8.75632932,166.7,166.62,6.0006]
[1752673897849,8.75632932,166.7,166.59,8.75632932]
[1752673898052,8.75632932,166.68,166.57,188.48]
[1752673898355,8.75632932,166.66,166.57,188.48]
[1752673898552,8.75632932,166.64,166.57,188.48]
[1752673898757,8.75632932,166.64,166.54,517.86]
[1752673898951,124.0,166.66,166.54,517.86]
[1752673899155,6.0029,166.57,166.54,517.86]
[1752673899458,8.75632932,166.6,166.51,188.5]
[1752673899751,124.0,166.66,166.52,8.75632932]
[1752673899956,124.0,166.66,166.53,8.75632932]
[1752673899957,8.75632932,166.63,166.53,8.75632932]
[1752673900151,124.0,166.66,166.53,8.75632932]
[1752673900352,124.0,166.66,166.57,8.75632932]
[1752673900547,124.0,166.66,166.51,188.5]
[1752673900548,8.75632932,166.69,166.59,8.75632932]
[1752673900754,5.9983,166.69,166.63,6.0001]
[1752673901057,8.75632932,166.72,166.61,8.75632932]
[1752673901559,8.75632932,166.73,166.63,8.75632932]
[1752673902655,8.75632932,166.77,166.67,8.75632932]
[1752673902856,8.75632932,166.78,166.67,8.75632932]
[1752673903059,8.75632932,166.79,166.69,8.75632932]
[1752673903259,159.90290195,166.82,166.71,8.75632932]
[1752673903451,0.03979776,166.74,166.71,8.75632932]
[1752673903853,132.75632932,166.81,166.71,8.75632932]
[1752673904053,168.65923127,166.82,166.71,8.75632932]
[1752673904254,159.90290195,166.82,166.66,707.12]
[1752673904453,159.90290195,166.82,166.72,8.75632932]
[1752673904655,0.03967857,166.78,166.72,8.75632932]
[1752673904954,0.03967857,166.78,166.72,14.75322932]
[1752673905159,0.03967857,166.78,166.66,707.12]
[1752673905359,0.03967857,166.78,166.71,8.75632932]
[1752673905555,8.75632932,166.79,166.69,8.75632932]
[1752673905756,8.75632932,166.77,166.69,8.75632932]
[1752673905953,0.04240727,166.76,166.67,8.75632932]
[1752673906155,5.997,166.73,166.67,8.75632932]
[1752673906356,0.04240727,166.76,166.67,8.75632932]
[1752673906557,283.90290195,166.82,166.67,8.75632932]
[1752673906558,8.75632932,166.78,166.67,8.75632932]
[1752673906758,8.75632932,166.8,166.69,8.75632932]
[1752673907060,0.04029425,166.73,166.69,8.75632932]
[1752673907662,0.04029425,166.73,166.71,8.75632932]
[1752673907862,5.995,166.78,166.71,14.75352932]
[1752673908062,5.995,166.78,166.69,0.04016185]
[1752673908063,124.0,166.82,166.73,8.75632932]
[1752673908265,124.0,166.82,166.66,707.12]
[1752673908463,5.9947,166.79,166.73,8.75632932]
[1752673908659,8.75632932,166.85,166.75,8.75632932]
[1752673908860,8.75632932,166.85,166.77,8.75632932]
[1752673909062,132.75632932,166.87,166.78,0.04506255]
[1752673909765,5.9931,166.84,166.78,0.04506255]
[1752673909962,189.52,166.88,166.79,8.75632932]
[1752673910162,5.9925,166.86,166.81,8.75632932]
[1752673910366,518.08,166.9,166.81,8.75632932]
[1752673910665,5.9928,166.85,166.82,0.04157973]
[1752673911066,124.0,166.9,166.82,0.04157973]
[1752673911370,5.9922,166.86,166.82,0.04157973]
[1752673911663,124.0,166.9,166.82,0.04157973]
[1752673912864,8.75632932,166.92,166.83,8.75632932]
[1752673913162,8.75632932,166.94,166.83,8.75632932]
[1752673913364,124.0,166.93,166.83,8.75632932]
[1752673913566,124.0,166.93,166.87,0.04584167]
[1752673914067,5.9909,166.9,166.87,0.04584167]
[1752673914266,124.0,166.93,166.87,0.04584167]
[1752673914668,5.9914,166.88,166.87,0.04584167]
[1752673915766,5.9912,166.89,166.87,0.04584167]
[1752673915967,124.0,166.93,166.87,0.04584167]
[1752673916168,8.75632932,166.96,166.87,0.04584167]
[1752673916561,5.9907,166.91,166.85,14.74872932]
[1752673916762,5.9907,166.91,166.87,8.75632932]
[1752673916960,124.0,166.95,166.9,0.04461429]
[1752673917166,5.9903,166.91,166.9,0.04461429]
[1752673920276,5.9914,166.89,166.85,8.75632932]
[1752673920576,0.04325506,166.92,166.85,8.75632932]
[1752673920771,8.75632932,166.93,166.83,8.75632932]
[1752673920971,8.75632932,166.89,166.76,517.9]
[1752673921176,8.75632932,166.87,166.77,14.5814748]
[1752673921377,8.75632932,166.87,166.78,5.82514548]
[1752673921574,0.04287891,166.84,166.77,5.82514548]
[1752673921769,5.9935,166.83,166.78,5.82786554]
[1752673922076,5.9935,166.83,166.76,526.65632932]
[1752673922077,0.04287891,166.84,166.79,5.82786554]
[1752673922277,0.04287891,166.84,166.76,526.65632932]
[1752673922473,5.9936,166.83,166.77,5.81537394]
[1752673922779,0.04287891,166.84,166.77,5.81537394]
[1752673923076,8.75632932,166.83,166.76,517.9]
[1752673923278,0.04287891,166.84,166.76,517.9]
[1752673923473,5.9936,166.82,166.77,5.81674754]
[1752673923676,0.04287891,166.84,166.77,5.81674754]
[1752673924071,0.04287891,166.84,166.77,11.81214754]
[1752673924275,0.04287891,166.84,166.78,5.81674754]
[1752673924475,0.04287891,166.84,166.76,517.9]
[1752673924680,8.75632932,166.83,166.77,5.81643086]
[1752673925078,5.9947,166.79,166.77,5.81643086]
[1752673925282,5.9947,166.79,166.73,5.9967]
[1752673925580,8.75632932,166.83,166.74,5.81784088]
[1752673925778,0.03868635,166.78,166.75,5.81784088]
[1752673925979,0.03868635,166.78,166.72,8.75632932]
[1752673926280,0.03868635,166.78,166.75,5.996]
[1752673926480,0.03868635,166.78,166.74,8.75632932]
[1752673926678,0.03868635,166.78,166.77,5.9954]
[1752673926876,0.03868635,166.78,166.77,5.81826486]
[1752673927482,8.75632932,166.87,166.77,5.81826486]
[1752673928072,11.9765,166.97,166.78,8.75632932]
[1752673928385,8.75632932,166.9,166.8,8.75632932]
[1752673928570,5.9928,166.85,166.81,5.81592595]
[1752673928771,8.75632932,166.86,166.77,8.75632932]
[1752673928970,8.75632932,166.86,166.83,0.04413704]
[1752673929174,14.74922932,166.84,166.83,0.00313899]
[1752673929372,8.75632932,166.84,166.77,5.81847069]
[1752673929582,5.9932,166.83,166.77,11.81377069]
[1752673929781,5.9932,166.83,166.78,5.81847069]
[1752673930179,8.75632932,166.84,166.78,5.81847069]
[1752673930374,8.75632932,166.86,166.78,5.81847069]
[1752673930683,0.04315591,166.82,166.76,188.12]
[1752673930881,0.04315591,166.82,166.77,5.9953]
[1752673931072,0.04315591,166.82,166.77,5.81791761]
[1752673931273,0.04315591,166.82,166.77,11.81331761]
[1752673931482,0.04315591,166.82,166.76,188.12]
[1752673931779,8.79948523,166.82,166.76,188.12]
[1752673932178,8.79948523,166.82,166.77,0.0399248]
[1752673932681,0.04315591,166.82,166.77,0.0399248]
[1752673933183,5.9941,166.81,166.77,0.0399248]
[1752673933479,0.04315591,166.82,166.77,0.0399248]
[1752673933683,0.04315591,166.82,166.79,8.75632932]
[1752673934582,0.04315591,166.82,166.8,5.9941]
[1752673934776,0.04315591,166.82,166.8,5.81828649]
[1752673934984,1.0431342,166.93,166.81,8.75632932]
[1752673935186,5.9917,166.88,166.82,11.81188649]
[1752673935384,5.9917,166.88,166.82,5.9936]
[1752673935782,5.9912,166.89,166.83,5.9932]
[1752673935986,279.3204302,166.94,166.83,8.75632932]
[1752673936286,288.07675952,166.94,166.84,0.03820127]
[1752673936688,288.07675952,166.94,166.85,8.75632932]
[1752673936990,320.53632932,166.95,166.86,5.81025393]
[1752673937181,124.0,166.95,166.87,8.75632932]
[1752673937488,156.42465217,166.98,166.89,8.7980249]
[1752673937688,8.75632932,166.97,166.89,0.04169558]
[1752673937888,5.9895,166.94,166.89,0.04169558]
[1752673938089,124.0,166.96,166.89,0.04169558]
[1752673938490,5.989,166.95,166.89,0.04169558]
[1752673938681,156.42465217,166.98,166.89,8.7980249]
[1752673939081,280.42465217,166.98,166.89,8.7980249]
[1752673939285,5.9887,166.96,166.9,5.9906]
[1752673939482,8.75632932,166.97,166.89,0.04169558]
[1752673939985,5.9899,166.93,166.89,0.04169558]
[1752673940184,8.75632932,166.97,166.89,0.04169558]
[1752673940589,8.75632932,166.93,166.89,0.04169558]
[1752673941091,8.75632932,166.93,166.83,8.75632932]
[1752673941092,8.75632932,166.91,166.83,8.75632932]
[1752673941286,124.0,166.92,166.83,8.75632932]
[1752673941484,194.00843505,167.04,166.87,8.75632932]
[1752673941683,8.75632932,166.96,166.86,8.75632932]
[1752673941891,8.75632932,166.96,166.85,5.9924]
[1752673941892,8.75632932,166.94,166.85,8.75632932]
[1752673942089,8.75632932,166.89,166.79,187.3]
[1752673942290,8.7999905,166.91,166.8,5.80462301]
[1752673942494,8.75632932,166.89,166.81,5.80462301]
[1752673942685,5.9925,166.85,166.81,5.80462301]
[1752673943091,5.9925,166.85,166.82,5.80462301]
[1752673943291,5.9925,166.85,166.8,5.9942]
[1752673943595,5.9923,166.86,166.81,5.81114289]
[1752673943796,0.0395544,166.87,166.8,8.75632932]
[1752673943998,0.0395544,166.87,166.81,5.81036229]
[1752673944391,6.0315544,166.87,166.82,5.9934]
[1752673944787,5.9926,166.85,166.8,14.75052932]
[1752673944987,5.9926,166.85,166.81,5.81893939]
[1752673945189,8.79588372,166.87,166.81,5.81893939]
[1752673945391,5.9931,166.84,166.82,5.81893939]
[1752673945693,8.79588372,166.87,166.83,5.81893939]
[1752673945894,8.75632932,166.87,166.78,8.75632932]
[1752673946095,5.9926,166.85,166.79,5.8296723]
[1752673946291,8.79465874,166.87,166.8,5.8296723]
[1752673946491,8.79465874,166.87,166.81,5.8296723]
[1752673946691,5.9926,166.85,166.78,8.75632932]
[1752673946887,8.75632932,166.87,166.79,5.83746389]
[1752673947197,0.0396094,166.86,166.8,5.83746389]
[1752673947397,0.0396094,166.86,166.81,5.83746389]
[1752673947601,0.0396094,166.86,166.82,5.83746389]
[1752673947892,0.0396094,166.86,166.78,5.995]
[1752673948098,0.0396094,166.86,166.79,5.84200431]
[1752673948299,5.9932,166.84,166.8,5.84200431]
[1752673948498,5.9932,166.84,166.81,5.84200431]
[1752673948698,5.9932,166.84,166.82,5.84200431]
[1752673948997,5.9932,166.84,166.83,5.84448774]
[1752673949201,5.9932,166.84,166.79,5.9947]
[1752673949398,5.9932,166.84,166.78,5.9949]
[1752673949600,8.75632932,166.88,166.79,8.75632932]
[1752673949796,0.04308699,166.83,166.79,8.75632932]
[1752673950095,0.04308699,166.83,166.76,188.0]
[1752673950096,0.04308699,166.83,166.8,5.9942]
[1752673950399,0.04308699,166.83,166.77,8.75632932]
[1752673950601,6.03658699,166.83,166.76,188.0]
[1752673950994,0.04308699,166.83,166.76,188.0]
[1752673951197,6.03648699,166.83,166.76,188.0]
[1752673951702,0.04308699,166.83,166.76,188.0]
[1752673951902,0.04308699,166.83,166.77,8.75632932]
[1752673952302,0.04308699,166.83,166.75,517.74]
[1752673952699,6.03658699,166.83,166.78,5.995]
[1752673953103,0.04308699,166.83,166.75,526.49632932]
[1752673953300,5.9938,166.82,166.77,5.9952]
[1752673953501,5.9938,166.82,166.75,526.49632932]
[1752673953700,6.03638699,166.83,166.78,5.995]
[1752673954001,0.04308699,166.83,166.75,526.49632932]
[1752673954207,0.04308699,166.83,166.77,8.75632932]
[1752673954400,0.04308699,166.83,166.79,8.75632932]
[1752673954595,8.75632932,166.9,166.81,8.75632932]
[1752673954799,15.40476437,166.92,166.85,5.9925]
[1752673955105,447.96043415,166.94,166.86,6.05504157]
[1752673955306,447.96043415,166.94,166.87,6.05504157]
[1752673955307,439.20410483,166.94,166.87,6.05504157]
[1752673955500,11.22786299,166.93,166.88,6.05504157]
[1752673955804,8.75632932,166.93,166.89,6.05504157]
[1752673956006,8.75632932,166.93,166.9,6.05504157]
[1752673956198,8.75632932,166.93,166.91,6.05504157]
[1752673956402,8.75632932,166.93,166.89,0.04489052]
[1752673956603,8.75632932,166.93,166.9,6.05312182]
[1752673956806,8.75632932,166.91,166.89,0.04489052]
[1752673957107,14.74672932,166.91,166.9,6.05422557]
[1752673957306,5.9904,166.91,166.9,6.05422557]
[1752673961611,5.9907,166.9,166.89,0.04489052]
[1752673961912,5.9907,166.9,166.89,6.09513428]
[1752673962611,159.88367463,166.94,166.89,6.09513428]
[1752673962809,159.88367463,166.94,166.9,6.05024376]
[1752673963111,5.9902,166.92,166.89,0.04489052]
[1752673963307,5.9902,166.92,166.9,6.04853404]
[1752673963502,159.88367463,166.94,166.89,0.04489052]
[1752673963706,159.88367463,166.94,166.9,6.04897729]
[1752673963906,159.88367463,166.94,166.89,0.04489052]
[1752673964114,159.88367463,166.94,166.9,6.0489731]
[1752673964408,159.88367463,166.94,166.89,0.04489052]
[1752673964610,5.9897,166.93,166.9,6.04863846]
[1752673964811,5.9897,166.93,166.91,6.04824213]
[1752673965112,5.9897,166.93,166.92,6.04824213]
[1752673965712,5.99,166.92,166.89,0.04489052]
[1752673965911,5.99,166.92,166.9,6.04668945]
[1752673966112,5.99,166.92,166.91,6.04668945]
[1752673967113,124.0,166.96,166.91,6.04668945]
[1752673967312,6.64843505,166.98,166.92,6.04668945]
[1752673967511,294.72519457,167.0,166.93,6.04668945]
[1752673967710,5.9888,166.96,166.94,6.04161542]
[1752673967916,124.0,166.99,166.9,8.75632932]
[1752673968108,6.64843505,167.0,166.95,0.0456991]
[1752673968311,202.34476437,167.02,166.95,0.0456991]
[1752673968510,6.64843505,167.04,166.94,8.75632932]
[1752673968712,124.0,167.03,166.96,5.9885]
[1752673969013,124.0,167.03,166.97,6.07812378]
[1752673969214,8.75632932,167.02,166.98,6.03828497]
[1752673969518,124.0,167.03,166.99,6.03110117]
[1752673969715,124.0,167.03,166.97,0.03983881]
[1752673969910,8.75632932,167.02,166.98,6.03208842]
[1752673970115,8.75632932,167.02,166.97,0.03983881]
[1752673970419,8.75632932,167.02,166.98,6.02859578]
[1752673970716,8.75632932,167.02,166.97,0.03983881]
[1752673970916,5.9877,166.99,166.97,0.03983881]